bitfinex/quotes_SOLUSD_20250129
["timestamp","ask_amount","ask_price","bid_price","bid_amount"]
[1738139150367,1.0,234.61,234.58,4.2629]
[1738139150853,1.0,234.61,234.59,23.902374]
[1738139151039,1.0,234.61,234.58,24.2629]
[1738139151354,1.0,234.57,234.53,10.96884342]
[1738139151652,1.0,234.57,234.54,0.12549]
[1738139152233,1.0,234.57,234.54,23.902374]
[1738139152851,1.0,234.57,234.55,4.2634]
[1738139155953,2.0,234.55,234.51,4.2642]
[1738139156957,2.0,234.55,234.52,23.902374]
[1738139157157,2.0,234.55,234.53,4.2638]
[1738139157747,1.0,234.51,234.45,89.80504342]
[1738139157950,1.0,234.49,234.46,4.2651]
[1738139158663,1.0,234.49,234.47,23.902374]
[1738139158951,1.0,234.49,234.47,4.39029]
[1738139161055,2.0,234.49,234.45,89.80504342]
[1738139161248,2.0,234.49,234.45,10.97014342]
[1738139161440,1.0,234.46,234.45,4.2651]
[1738139162337,1.0,234.46,234.43,26.70504342]
[1738139162543,1.0,234.46,234.44,28.167774]
[1738139163139,1.0,234.47,234.44,34.87281742]
[1738139163550,1.0,234.48,234.44,34.87281742]
[1738139164952,1.0,234.47,234.44,34.87281742]
[1738139165154,1.0,234.47,234.44,34.90281742]
[1738139165543,1.0,234.46,234.44,34.90281742]
[1738139167369,1.0,234.47,234.44,34.90281742]
[1738139167571,1.0,234.48,234.44,34.90281742]
[1738139169372,1.0,234.48,234.44,36.44651742]
[1738139169573,1.0,234.55,234.51,0.12549]
[1738139169760,2.0,234.55,234.54,23.776884]
[1738139171777,2.0,234.55,234.54,28.040484]
[1738139171988,1.0,234.55,234.54,28.040484]
[1738139172484,1.0,234.55,234.46,2.66072972]
[1738139172485,1.0,234.49,234.47,6.70504342]
[1738139172685,1.0,234.49,234.45,4.2653]
[1738139173174,1.0,234.5,234.48,23.776884]
[1738139173555,1.0,234.5,234.48,28.041584]
[1738139174376,1.0,234.48,234.46,4.39039]
[1738139174570,1.0,234.48,234.46,4.2649]
[1738139175087,1.0,234.48,234.47,23.776884]
[1738139177078,1.0,234.48,234.46,23.776884]
[1738139177379,1.0,234.48,234.46,28.041984]
[1738139177565,1.0,234.48,234.46,28.071984]
[1738139177768,2.0,234.51,234.47,6.70504342]
[1738139178068,1.0,234.51,234.48,4.2647]
[1738139179078,1.0,234.51,234.49,28.041284]
[1738139179668,1.0,234.51,234.49,34.74632742]
[1738139180380,2.0,234.53,234.49,34.74632742]
[1738139181780,1.0,234.51,234.49,34.74632742]
[1738139181983,1.0,234.5,234.47,10.96974342]
[1738139182182,1.0,234.49,234.48,23.776884]
[1738139182981,1.0,234.49,234.47,10.96974342]
[1738139183163,1.5756,234.57,234.46,4.295]
[1738139183164,1.0,234.47,234.46,4.295]
[1738139184801,1.0,234.47,234.46,28.071884]
[1738139185570,1.0,234.49,234.47,23.776884]
[1738139186098,1.0,234.49,234.47,6.70504342]
[1738139186269,1.0,234.51,234.49,23.776884]
[1738139186964,1.0,234.5,234.49,23.776884]
[1738139187182,1.0,234.51,234.49,23.776884]
[1738139187365,1.0,234.51,234.5,28.041184]
[1738139187565,1.0,234.53,234.51,23.776884]
[1738139187765,1.0,234.55,234.53,23.776884]
[1738139187982,4.2624,234.62,234.55,23.776884]
[1738139187983,1.0,234.58,234.55,23.776884]
[1738139188287,1.0,234.56,234.55,23.776884]
[1738139188784,1.0,234.58,234.55,23.776884]
[1738139190085,1.0,234.58,234.55,28.040184]
[1738139190290,2.0,234.56,234.55,28.040184]
[1738139190666,1.0,234.56,234.55,28.040184]
[1738139190966,2.0,234.58,234.55,28.040184]
[1738139191485,1.0,234.56,234.55,28.040184]
[1738139192297,1.0,234.58,234.55,28.040184]
[1738139193088,1.0,234.57,234.55,28.040184]
[1738139193698,1.0,234.58,234.55,28.040184]
[1738139194404,1.0,234.59,234.55,28.040184]
[1738139194897,1.0,234.58,234.55,28.040184]
[1738139195091,1.0,234.57,234.55,28.040184]
[1738139195897,2.0,234.6,234.55,28.040184]
[1738139196302,1.0,234.58,234.55,28.040184]
[1738139196497,2.0,234.58,234.55,28.040184]
[1738139198911,1.0,234.58,234.55,28.040184]
[1738139199312,1.0,234.6,234.57,23.776884]
[1738139199615,2.0001,234.62,234.57,23.776884]
[1738139199995,2.0001,234.62,234.59,23.776884]
[1738139201394,1.0001,234.62,234.6,4.2625]
[1738139201607,1.0001,234.62,234.61,23.776884]
[1738139202100,0.0001,234.62,234.61,23.776884]
[1738139202801,1.0001,234.62,234.61,23.776884]
[1738139204626,1.0001,234.62,234.61,28.039184]
[1738139206315,0.0001,234.62,234.61,28.039184]
[1738139207812,0.0001,234.62,234.61,28.164674]
[1738139209205,1.0,234.61,234.58,6.70504342]
[1738139209409,1.0,234.6,234.59,4.2626]
[1738139209619,1.0,234.61,234.6,23.776884]
[1738139209807,1.0,234.61,234.59,4.2626]
[1738139210009,1.0,234.6,234.59,4.2626]
[1738139210620,1.0,234.6,234.59,28.039484]
[1738139210813,1.0001,234.62,234.6,23.776884]
[1738139211326,0.0001,234.62,234.6,30.60741742]
[1738139212608,1.0001,234.62,234.61,28.069184]
[1738139213007,1.0001,234.62,234.61,0.03]
[1738139214326,7.70514342,234.62,234.61,0.03]
[1738139215423,11.96734342,234.62,234.61,0.03]
[1738139215824,11.87568242,234.62,234.61,0.03]
[1738139216828,7.61348242,234.62,234.61,0.03]
[1738139217835,11.87568242,234.62,234.61,0.03]
[1738139220208,12.00117242,234.62,234.61,0.03]
[1738139220424,1.908439,234.56,234.55,0.03]
[1738139220632,10.35417242,234.56,234.55,0.03]
[1738139220906,10.35417242,234.56,234.46,0.03]
[1738139220907,1.908439,234.47,234.46,0.03]
[1738139221123,12.87838242,234.47,234.46,0.03]
[1738139221912,8.61348242,234.47,234.46,0.03]
[1738139222107,1.908439,234.47,234.46,0.03]
[1738139222420,0.908439,234.47,234.46,30.51192742]
[1738139223101,0.908439,234.49,234.47,23.776884]
[1738139223307,1.908439,234.53,234.49,23.776884]
[1738139223522,1.908439,234.53,234.48,6.70504342]
[1738139223523,0.908439,234.53,234.52,6.70504342]
[1738139224231,1.0,234.52,234.51,6.70504342]
[1738139224731,1.0,234.52,234.5,23.776884]
[1738139224907,0.908439,234.51,234.5,23.776884]
[1738139225107,0.908439,234.49,234.48,4.2646]
[1738139225906,0.908439,234.49,234.48,28.041484]
[1738139226826,1.908439,234.52,234.48,28.166974]
[1738139227031,0.908439,234.5,234.49,30.48192742]
[1738139227926,0.908439,234.5,234.49,34.74642742]
[1738139228129,1.908439,234.5,234.48,23.776884]
[1738139228727,0.908439,234.49,234.48,23.776884]
[1738139230013,0.908439,234.49,234.48,28.041584]
[1738139230836,0.908439,234.49,234.48,23.776884]
[1738139231409,0.908439,234.47,234.46,0.03]
[1738139232014,7.61348242,234.47,234.46,0.03]
[1738139232209,0.908439,234.47,234.46,0.03]
[1738139244245,0.908439,234.47,234.46,23.806884]
[1738139244838,0.908439,234.47,234.46,0.03]
[1738139251150,0.908439,234.47,234.46,23.806884]
[1738139254339,0.908439,234.47,234.46,28.071984]
[1738139254723,0.908439,234.47,234.46,28.197474]
[1738139254941,0.908439,234.49,234.46,28.197474]
[1738139255140,0.908439,234.51,234.49,23.776884]
[1738139255428,0.908439,234.51,234.5,30.48192742]
[1738139256341,0.908439,234.51,234.5,34.74622742]
[1738139256845,0.908439,234.51,234.5,23.776884]
[1738139258934,1.908439,234.47,234.46,0.03]
[1738139269558,0.908439,234.47,234.46,30.51192742]
[1738139271553,0.908439,234.47,234.46,34.77702742]
[1738139273172,1.908439,234.47,234.46,34.77702742]
[1738139273468,1.908439,234.47,234.46,0.03]
[1738139284773,13.00387242,234.47,234.46,0.03]
[1738139285180,20.908439,234.45,234.44,0.03]
[1738139285377,28.04096187,234.45,234.44,0.03]
[1738139285577,1.908439,234.38,234.37,0.03]
[1738139285881,8.61348242,234.38,234.37,0.03]
[1738139286485,8.73897242,234.38,234.37,0.03]
[1738139288479,8.61348242,234.38,234.37,0.03]
[1738139290889,1.908439,234.38,234.37,0.03]
[1738139292290,0.908439,234.38,234.37,23.806884]
[1738139292487,1.0,234.42,234.37,23.806884]
[1738139292783,1.0,234.42,234.41,6.70504342]
[1738139293187,0.908439,234.43,234.41,34.74792742]
[1738139293377,1.0,234.46,234.42,23.776884]
[1738139293578,1.0,234.46,234.43,6.70504342]
[1738139293780,1.908439,234.46,234.43,6.70504342]
[1738139294172,1.908439,234.46,234.44,4.2654]
[1738139294377,0.908439,234.44,234.42,4.2656]
[1738139295197,1.0,234.43,234.42,4.2656]
[1738139296095,1.0,234.45,234.42,4.2656]
[1738139296296,0.908439,234.46,234.43,30.48192742]
[1738139296592,0.908439,234.44,234.43,30.48192742]
[1738139298996,0.908439,234.44,234.43,10.97064342]
[1738139299288,0.908439,234.44,234.43,23.776884]
[1738139299669,0.908439,234.44,234.43,30.48192742]
[1738139299869,28.00019897,234.65,234.43,30.48192742]
[1738139299870,0.908439,234.46,234.43,30.48192742]
[1738139300088,0.908439,234.46,234.45,6.70504342]
[1738139300302,0.908439,234.48,234.46,23.776884]
[1738139300478,0.908439,234.48,234.47,30.48192742]
[1738139301003,0.908439,234.48,234.47,34.74682742]
[1738139301173,0.908439,234.5,234.48,23.776884]
[1738139301505,0.908439,234.5,234.49,30.48192742]
[1738139301811,0.908439,234.54,234.5,23.776884]
[1738139301985,0.908439,234.51,234.5,20.0]
[1738139302171,0.908439,234.54,234.51,20.0]
[1738139302514,0.908439,234.54,234.53,30.48192742]
[1738139303091,0.908439,234.54,234.53,34.74572742]
[1738139304591,0.908439,234.54,234.53,28.040684]
[1738139306979,0.908439,234.49,234.48,10.47734065]
[1738139307701,1.908439,234.49,234.48,20.0]
[1738139307990,1.908439,234.49,234.46,14.74244065]
[1738139308206,0.908439,234.47,234.46,38.51932465]
[1738139309478,0.908439,234.49,234.47,23.776884]
[1738139309684,0.908439,234.51,234.49,23.776884]
[1738139310019,0.908439,234.51,234.49,10.47734065]
[1738139311202,1.0,234.52,234.51,43.776884]
[1738139311402,1.0,234.52,234.51,54.25422465]
[1738139314781,1.0,234.52,234.51,58.51842465]
[1738139316910,1.0,234.52,234.51,4.2642]
[1738139317283,1.0,234.52,234.5,4.2643]
[1738139317484,0.908439,234.51,234.5,28.041184]
[1738139319820,0.908439,234.48,234.47,10.47734065]
[1738139320016,0.908439,234.48,234.46,4.2651]
[1738139320904,0.908439,234.48,234.47,23.776884]
[1738139321106,0.908439,234.48,234.47,28.041784]
[1738139321683,0.908439,234.46,234.45,87.3651]
[1738139322819,10.54034065,234.51,234.48,20.0]
[1738139322820,0.908439,234.49,234.48,20.0]
[1738139323000,0.063,234.51,234.5,23.776884]
[1738139323316,0.063,234.51,234.5,34.25422465]
[1738139324516,0.971439,234.51,234.5,34.25422465]
[1738139324693,0.971439,234.51,234.5,10.97082371]
[1738139324895,0.063,234.51,234.5,10.97082371]
[1738139325909,0.971439,234.51,234.5,10.97082371]
[1738139326905,0.063,234.51,234.5,10.97082371]
[1738139328205,0.971439,234.51,234.5,10.97082371]
[1738139328405,0.971439,234.51,234.5,4.2643]
[1738139329407,1.0,234.5,234.49,28.041384]
[1738139330897,0.908439,234.47,234.46,6.70652371]
[1738139331293,0.908439,234.47,234.46,23.776884]
[1738139331714,0.908439,234.47,234.46,4.2649]
[1738139332318,0.908439,234.47,234.46,28.041784]
[1738139335027,0.908439,234.47,234.46,23.776884]
[1738139337901,0.908439,234.47,234.46,34.74850771]
[1738139338515,1.908439,234.47,234.46,30.48340771]
[1738139338816,1.908439,234.45,234.44,11.00182371]
[1738139339623,1.908439,234.45,234.44,34.77870771]
[1738139340321,1.908439,234.47,234.44,34.77870771]
[1738139340518,1.908439,234.47,234.45,23.776884]
[1738139341613,1.908439,234.47,234.44,11.00182371]
[1738139342401,1.908439,234.47,234.46,30.48340771]
[1738139342608,0.908439,234.49,234.48,43.776884]
[1738139342916,0.971439,234.51,234.49,23.902374]
[1738139343122,0.063,234.51,234.5,6.83201371]
[1738139344710,0.971439,234.51,234.5,11.09631371]
[1738139345624,0.971439,234.51,234.48,20.0]
[1738139345625,1.908439,234.49,234.48,6.70652371]
[1738139345928,1.908439,234.45,234.44,89.83652371]
[1738139346300,1.908439,234.45,234.44,113.73889771]
[1738139346529,1.908439,234.45,234.44,113.61340771]
[1738139348527,1.908439,234.45,234.44,30.51340771]
[1738139351937,1.908439,234.45,234.44,34.77880771]
[1738139352331,1.908439,234.45,234.44,30.51340771]
[1738139353439,1.908439,234.45,234.44,34.77880771]
[1738139355933,1.971439,234.45,234.44,34.77880771]
[1738139356708,1.971439,234.45,234.44,30.51340771]
[1738139359038,1.971439,234.45,234.44,34.77880771]
[1738139365057,1.971439,234.45,234.44,0.03]
[1738139365250,12.94326271,234.45,234.44,0.03]
[1738139367841,1.971439,234.45,234.44,0.03]
[1738139375256,13.06875271,234.45,234.44,0.03]
[1738139375447,41.31673216,234.45,234.44,0.03]
[1738139375953,22.31673216,234.45,234.44,0.0001]
[1738139376152,26.174039,234.43,234.35,0.03]
[1738139376337,33.43353216,234.43,234.35,0.03]
[1738139376544,34.43353216,234.43,234.35,0.03]
[1738139377857,33.43353216,234.43,234.35,0.03]
[1738139379956,33.30804216,234.43,234.35,0.03]
[1738139380137,32.88056271,234.43,234.35,0.03]
[1738139381458,12.88056271,234.43,234.35,0.03]
[1738139401584,13.43353216,234.43,234.35,0.03]
[1738139401804,2.033929,234.38,234.35,0.03]
[1738139402097,10.16793216,234.38,234.35,0.03]
[1738139402594,22.033929,234.36,234.35,0.03]
[1738139402793,8.61496271,234.32,234.31,0.03]
[1738139403000,9.04244216,234.32,234.31,0.03]
[1738139404303,12.88256271,234.32,234.31,0.03]
[1738139404903,8.61496271,234.32,234.31,0.03]
[1738139405483,1.908439,234.32,234.31,0.03]
[1738139405781,1.908439,234.36,234.32,0.12549]
[1738139405999,1.908439,234.36,234.35,30.48340771]
[1738139406402,0.908439,234.36,234.35,34.75050771]
[1738139406900,1.908439,234.38,234.36,23.776884]
[1738139407206,1.908439,234.38,234.37,6.70652371]
[1738139407784,6.76952371,234.44,234.35,4.2671]
[1738139407785,1.908439,234.36,234.35,10.97362371]
[1738139407980,0.908439,234.36,234.35,10.97362371]
[1738139408181,1.0,234.4,234.36,0.12549]
[1738139408488,1.0,234.4,234.39,30.48340771]
[1738139409911,1.0,234.4,234.39,34.74970771]
[1738139410622,1.908439,234.43,234.4,23.776884]
[1738139410819,1.0,234.41,234.4,23.776884]
[1738139411010,1.908439,234.41,234.4,23.776884]
[1738139411341,1.908439,234.41,234.39,11.8635]
[1738139413731,0.908439,234.38,234.36,6.70652371]
[1738139413915,1.908439,234.36,234.34,8.1262]
[1738139414120,1.908439,234.33,234.31,0.03]
[1738139416157,1.908439,234.38,234.36,23.776884]
[1738139416332,1.908439,234.41,234.37,6.70652371]
[1738139416534,1.971439,234.43,234.4,23.776884]
[1738139416737,0.063,234.43,234.42,30.48340771]
[1738139416937,0.063,234.43,234.42,30.60889771]
[1738139417139,0.0001,234.43,234.42,30.73438771]
[1738139417436,0.0001,234.43,234.42,60.73438771]
[1738139417829,0.0001,234.43,234.42,35.00018771]
[1738139418531,0.0001,234.43,234.42,38.77586195]
[1738139419734,0.0001,234.43,234.42,68.77586195]
[1738139419934,0.0001,234.43,234.42,68.86742295]
[1738139420525,0.0001,234.43,234.42,68.77586195]
[1738139420729,0.0001,234.43,234.42,38.77586195]
[1738139420936,0.0001,234.43,234.42,68.77586195]
[1738139421343,0.0001,234.45,234.44,31.817225]
[1738139421556,0.0001,234.45,234.44,42.29942295]
[1738139421841,0.0001,234.45,234.44,46.56482295]
[1738139422048,0.0001,234.45,234.44,22.57088795]
[1738139422422,0.0001,234.45,234.44,22.69637795]
[1738139422629,0.0001,234.45,234.44,22.57088795]
[1738139422839,1.908539,234.45,234.44,22.57088795]
[1738139423038,1.908539,234.45,234.44,14.87308795]
[1738139423762,0.0001,234.45,234.44,14.99857795]
[1738139424733,0.0001,234.45,234.44,121.87546195]
[1738139425137,0.063,234.51,234.5,21.82298]
[1738139425344,0.063,234.51,234.5,56.08206195]
[1738139426049,0.063,234.51,234.5,60.34636195]
[1738139429653,0.063,234.51,234.5,60.22087195]
[1738139429855,0.063,234.51,234.5,58.64887195]
[1738139430041,0.063,234.51,234.5,34.38457195]
[1738139430244,0.971439,234.51,234.5,34.38457195]
[1738139430556,1.0,234.49,234.48,10.48219795]
[1738139430739,1.908439,234.49,234.48,10.48219795]
[1738139430940,1.908439,234.49,234.47,23.902374]
[1738139431758,1.908439,234.47,234.45,4.2652]
[1738139432747,1.908439,234.47,234.46,23.776884]
[1738139433363,0.908439,234.5,234.49,20.12549]
[1738139433548,0.063,234.51,234.5,34.38457195]
[1738139434267,0.063,234.51,234.5,34.51006195]
[1738139434760,0.063,234.51,234.5,38.64887195]
[1738139436244,0.971439,234.51,234.5,38.64887195]
[1738139436767,1.971439,234.51,234.5,38.64887195]
[1738139437756,0.971439,234.51,234.5,34.25908195]
[1738139437946,0.971439,234.51,234.5,38.52338195]
[1738139438151,1.971439,234.51,234.5,38.52338195]
[1738139439356,0.971439,234.51,234.5,38.64887195]
[1738139439742,1.971439,234.51,234.5,38.64887195]
[1738139440453,1.971439,234.51,234.5,38.52338195]
[1738139440655,1.971439,234.51,234.46,10.48219795]
[1738139440656,0.908439,234.49,234.46,10.48219795]
[1738139440867,0.908439,234.47,234.46,14.74709795]
[1738139441169,0.908439,234.47,234.46,38.64947195]
[1738139441546,1.908439,234.47,234.46,38.52398195]
[1738139441966,1.908439,234.47,234.45,0.03]
[1738139443665,1.908439,234.47,234.45,23.806884]
[1738139444644,0.908439,234.47,234.46,10.60768795]
[1738139445674,0.971439,234.51,234.5,23.776884]
[1738139445842,0.971439,234.51,234.5,38.52338195]
[1738139446854,0.971439,234.51,234.5,38.64887195]
[1738139447165,0.063,234.51,234.5,38.77436195]
[1738139447966,0.971439,234.68,234.64,20.0]
[1738139448159,0.971439,234.68,234.61,54.027864]
[1738139448160,0.971439,234.68,234.67,10.48219795]
[1738139448474,0.063,234.68,234.67,34.38457195]
[1738139448647,0.063,234.68,234.67,40.64073062]
[1738139449048,0.063,234.68,234.67,44.90203062]
[1738139449544,0.063,234.68,234.67,45.02752062]
[1738139449743,0.0001,234.69,234.68,24.027864]
[1738139453473,0.063,234.73,234.68,24.027864]
[1738139453474,0.063,234.73,234.72,24.027864]
[1738139453664,0.063,234.74,234.72,277.00457724]
[1738139455481,0.063,234.74,234.73,28.288064]
[1738139455984,0.908439,234.87,234.83,20.0]
[1738139456189,0.908439,234.9,234.86,16.73835662]
[1738139456476,0.908439,234.9,234.89,16.73835662]
[1738139457759,0.908439,234.9,234.87,16.73835662]
[1738139457960,0.908439,234.84,234.83,16.73835662]
[1738139458161,0.908439,234.8,234.77,16.73835662]
[1738139458467,0.908439,234.78,234.77,40.51524062]
[1738139458778,16.73835662,234.85,234.73,16.73835662]
[1738139458779,0.908439,234.76,234.73,16.73835662]
[1738139459077,16.73835662,234.81,234.73,16.73835662]
[1738139459078,0.908439,234.74,234.73,16.73835662]
[1738139459280,0.908439,234.74,234.73,40.51524062]
[1738139459777,0.908439,234.76,234.73,40.64073062]
[1738139460072,0.908439,234.76,234.75,40.51524062]
[1738139460464,0.908439,234.76,234.75,16.73835662]
[1738139460660,0.908439,234.74,234.73,16.73835662]
[1738139460972,0.908439,234.72,234.71,16.73835662]
[1738139461179,0.908439,234.7,234.69,16.73835662]
[1738139461682,0.908439,234.7,234.69,40.51524062]
[1738139462655,0.908439,234.7,234.69,16.73835662]
[1738139462873,0.908439,234.7,234.67,16.73835662]
[1738139463083,0.908439,234.68,234.65,4.38699]
[1738139463459,0.908439,234.68,234.66,23.776884]
[1738139463660,0.908439,234.68,234.66,4.2614]
[1738139465085,0.908439,234.68,234.67,40.51524062]
[1738139466379,0.908439,234.66,234.65,16.73835662]
[1738139466578,0.908439,234.64,234.63,16.73835662]
[1738139466775,0.908439,234.62,234.61,16.73835662]
[1738139467087,0.908439,234.62,234.59,16.73835662]
[1738139467384,0.908439,234.58,234.57,40.64073062]
[1738139468370,0.908439,234.58,234.55,16.73835662]
[1738139468575,0.908439,234.56,234.55,16.73835662]
[1738139468789,0.908439,234.56,234.55,40.51524062]
[1738139470176,0.908439,234.52,234.51,16.73835662]
[1738139471073,0.908439,234.5,234.49,16.73835662]
[1738139471276,0.908439,234.47,234.46,16.76835662]
[1738139472295,0.908439,234.47,234.46,0.03]
[1738139472475,0.908439,234.47,234.46,40.54524062]
[1738139473173,0.908439,234.47,234.46,40.67073062]
[1738139473372,0.908439,234.49,234.47,28.167274]
[1738139473683,0.908439,234.51,234.49,23.902374]
[1738139473979,0.908439,234.54,234.53,23.776884]
[1738139474288,0.908439,234.54,234.51,16.73835662]
[1738139474495,0.908439,234.52,234.51,16.73835662]
[1738139475207,0.908439,234.5,234.48,4.2647]
[1738139475371,0.908439,234.48,234.47,16.73835662]
[1738139476079,0.908439,234.48,234.46,0.03]
[1738139480019,0.908439,234.48,234.47,16.73835662]
[1738139480223,0.908439,234.48,234.47,16.86384662]
[1738139481014,0.908439,234.48,234.47,44.90563062]
[1738139485007,0.908439,234.5,234.48,0.12549]
[1738139485194,0.908439,234.5,234.49,40.51524062]
[1738139485815,0.908439,234.52,234.5,23.776884]
[1738139486016,0.908439,234.54,234.52,23.776884]
[1738139486324,0.908439,234.54,234.53,16.73835662]
[1738139487413,0.908439,234.56,234.53,44.77904062]
[1738139487617,0.908439,234.56,234.55,16.73835662]
[1738139487821,0.908439,234.56,234.55,40.51524062]
[1738139490247,0.908439,234.56,234.55,44.77864062]
[1738139490946,27.21405662,234.62,234.47,0.03]
[1738139490947,0.908439,234.54,234.53,16.73835662]
[1738139492332,0.908439,234.54,234.53,21.00215662]
[1738139493648,0.908439,234.56,234.53,44.90453062]
[1738139493840,0.908439,234.56,234.55,40.51524062]
[1738139494949,0.908439,234.56,234.55,44.90413062]
[1738139495252,0.908439,234.56,234.55,44.77864062]
[1738139495626,0.908439,234.56,234.55,23.776884]
[1738139496456,0.908439,234.56,234.55,28.040284]
[1738139498758,0.908439,234.56,234.55,28.070284]
[1738139499057,0.908439,234.56,234.55,0.03]
[1738139500047,5.171739,234.56,234.55,0.03]
[1738139500247,6.59921845,234.56,234.55,0.03]
[1738139500759,6.171739,234.56,234.55,0.03]
[1738139500942,5.171739,234.56,234.55,0.03]
[1738139502759,0.908439,234.56,234.55,0.03]
[1738139503049,5.171739,234.56,234.55,0.03]
[1738139503548,7.297229,234.56,234.55,0.03]
[1738139504140,0.908439,234.48,234.47,0.03]
[1738139504430,11.38428392,234.48,234.47,0.03]
[1738139504841,15.64898392,234.48,234.47,0.03]
[1738139505426,16.20195337,234.48,234.47,0.03]
[1738139505628,17.20195337,234.48,234.47,0.03]
[1738139506948,1.0,234.47,234.46,0.03]
[1738139507248,2.5569,234.47,234.46,0.0001]
[1738139508554,19.34622748,234.47,234.46,0.0001]
[1738139508731,19.47171748,234.47,234.46,0.0001]
[1738139508932,23.73661748,234.47,234.46,0.0001]
[1738139515345,2.033929,234.46,234.45,0.0001]
[1738139515540,2.46140845,234.46,234.45,0.0001]
[1738139515746,26.23829245,234.46,234.45,0.0001]
[1738139516962,30.50339245,234.46,234.45,0.0001]
[1738139517565,6.72650845,234.46,234.45,0.0001]
[1738139521052,5.173539,234.46,234.45,0.0001]
[1738139521654,0.908439,234.46,234.45,0.0001]
[1738139522154,0.908439,234.46,234.45,16.78942748]
[1738139523166,0.908439,234.46,234.45,21.05472748]
[1738139523349,0.908439,234.46,234.45,44.83161148]
[1738139523546,0.971439,234.48,234.46,23.776884]
[1738139523752,0.971439,234.48,234.47,40.56621148]
[1738139524549,0.063,234.48,234.47,40.69170148]
[1738139524748,0.063,234.48,234.47,63.85362896]
[1738139524949,0.908439,234.56,234.51,20.12549]
[1738139525168,0.908439,234.56,234.55,40.56621148]
[1738139525369,0.908439,234.58,234.55,40.56621148]
[1738139525555,0.908439,234.56,234.55,23.776884]
[1738139525952,0.908439,234.57,234.56,23.776884]
[1738139526156,0.908439,234.57,234.56,40.56621148]
[1738139526981,0.908439,234.57,234.56,16.78932748]
[1738139527862,0.908439,234.55,234.54,16.78932748]
[1738139528082,0.908439,234.49,234.47,8.0361]
[1738139528776,0.908439,234.49,234.47,1.6635]
[1738139529972,0.908439,234.49,234.48,40.56621148]
[1738139530578,0.908439,234.49,234.48,34.25832724]
[1738139533392,0.908439,234.49,234.48,38.64851724]
[1738139533571,0.908439,234.53,234.5,0.12549]
[1738139533771,0.908439,234.55,234.53,23.776884]
[1738139533973,0.908439,234.55,234.54,10.48144324]
[1738139534181,0.908439,234.57,234.54,10.48144324]
[1738139534473,0.908439,234.55,234.53,23.776884]
[1738139534770,0.908439,234.55,234.54,16.7577962]
[1738139535290,0.908439,234.55,234.54,21.0213962]
[1738139536185,0.908439,234.58,234.54,21.0213962]
[1738139536395,0.908439,234.58,234.57,16.7577962]
[1738139536892,0.908439,234.58,234.57,40.5346802]
[1738139537685,0.908439,234.58,234.57,44.7977802]
[1738139538694,16.7577962,234.67,234.57,44.7977802]
[1738139538695,0.908439,234.6,234.57,44.7977802]
[1738139538907,0.908439,234.58,234.57,28.039984]
[1738139539188,0.908439,234.6,234.58,23.902374]
[1738139539490,0.908439,234.62,234.6,23.776884]
[1738139539667,0.908439,234.62,234.61,16.7577962]
[1738139539992,0.908439,234.62,234.61,40.5346802]
[1738139541379,0.908439,234.62,234.61,16.7577962]
[1738139541580,0.908439,234.62,234.59,21.0202962]
[1738139541781,0.908439,234.6,234.59,44.7971802]
[1738139541982,0.908439,234.62,234.6,23.776884]
[1738139542294,0.908439,234.62,234.61,16.7577962]
[1738139544174,0.908439,234.62,234.61,44.7969802]
[1738139544781,0.908439,234.66,234.62,23.776884]
[1738139544988,0.908439,234.66,234.63,16.7577962]
[1738139545188,0.908439,234.64,234.63,16.7577962]
[1738139545804,0.908439,234.66,234.63,21.0197962]